fUSD/lending_fUSD_20250506
["ID","MTS","AMOUNT","RATE_DAILY","PERIOD"]
[360096904,1746547888722,-496.69,0.00019999,2]
[360096905,1746547888731,-400.0,0.00019999,2]
[360096906,1746547888740,-496.69,0.00019999,2]
[360096907,1746547888750,-496.69,0.00019999,2]
[360096908,1746547888759,-496.69,0.00019999,2]
[360096909,1746547888768,-496.69,0.00019999,2]
[360096910,1746547888778,-496.69,0.00019999,2]
[360096911,1746547888787,-496.69,0.00019999,2]
[360096912,1746547888797,-496.74,0.00019999,2]
[360096913,1746547888806,-151.0,0.00019999,2]
[360096914,1746547888815,-151.0,0.00019999,2]
[360096915,1746547888824,-151.0,0.00019999,2]
[360096916,1746547888834,-450.0,0.00019999,2]
[360096917,1746547888843,-450.0,0.00019999,2]
[360096918,1746547888853,-352.16640618,0.00019999,2]
[360096919,1746547888862,-450.0,0.00019999,2]
[360096920,1746547888872,-450.0,0.00019999,2]
[360096921,1746547888882,-450.0,0.00019999,2]
[360096922,1746547888891,-450.0,0.00019999,2]
[360096923,1746547888901,-151.0,0.00019999,2]
[360096924,1746547888910,-450.0,0.00019999,2]
[360096925,1746547888922,-400.0,0.00019999,2]
[360096926,1746547888932,-670.6,0.00019999,2]
[360096927,1746547888941,-151.0,0.00019999,2]
[360096928,1746547888950,-670.6,0.00019999,2]
[360096929,1746547888960,-670.6,0.00019999,2]
[360096930,1746547888969,-670.6,0.00019999,2]
[360096931,1746547888978,-450.0,0.00019999,2]
[360096932,1746547888987,-670.6,0.00019999,2]
[360096933,1746547888997,-450.0,0.00019999,2]
[360096934,1746547889006,-670.6,0.00019999,2]
[360096935,1746547889016,-450.0,0.00019999,2]
[360096936,1746547889025,-670.6,0.00019999,2]
[360096937,1746547889035,-450.0,0.00019999,2]
[360096938,1746547889045,-670.6,0.00019999,2]
[360096939,1746547889054,-450.0,0.00019999,2]
[360096940,1746547889064,-450.0,0.00019999,2]
[360096941,1746547889074,-670.6,0.00019999,2]
[360096942,1746547889083,-670.6,0.00019999,2]
[360096943,1746547889097,-670.6,0.00019999,2]
[360096944,1746547889117,-670.77,0.00019999,2]
[360096945,1746547889136,-450.0,0.00019999,2]
[360096946,1746547889156,-450.0,0.00019999,2]
[360096947,1746547889174,-450.0,0.00019999,2]
[360096948,1746547889190,-450.000001,0.00019999,2]
[360096949,1746547889209,-450.0,0.00019999,2]
[360096950,1746547889229,-450.0,0.00019999,2]
[360096951,1746547889248,-450.0,0.00019999,2]
[360096952,1746547889267,-450.0,0.00019999,2]
[360096953,1746547889288,-450.0,0.00019999,2]
[360096954,1746547889305,-450.0,0.00019999,2]
[360096955,1746547889318,-450.0,0.00019999,2]
[360096956,1746547889340,-450.0,0.00019999,2]
[360096957,1746547889353,-450.0,0.00019999,2]
[360096958,1746547889372,-450.0,0.00019999,2]
[360096959,1746547889387,-450.0,0.00019999,2]
[360096960,1746547889403,-450.0,0.00019999,2]
[360096961,1746547889419,-450.0,0.00019999,2]
[360096962,1746547889435,-151.0,0.00019999,2]
[360096963,1746547889450,-151.0,0.00019999,2]
[360096964,1746547889466,-450.0,0.00019999,2]
[360096965,1746547889481,-151.0,0.00019999,2]
[360096966,1746547889495,-431.21,0.00019999,2]
[360096967,1746547889511,-450.0,0.00019999,2]
[360096968,1746547889526,-450.0,0.00019999,2]
[360096969,1746547889541,-450.0,0.00019999,2]
[360096970,1746547889557,-450.0,0.00019999,2]
[360096971,1746547889572,-450.0,0.00019999,2]
[360096972,1746547889587,-450.0,0.00019999,2]
[360096973,1746547889602,-450.0,0.00019999,2]
[360096974,1746547889616,-450.0,0.00019999,2]
[360096975,1746547889631,-450.0,0.00019999,2]
[360096976,1746547889646,-450.0,0.00019999,2]
[360096977,1746547889660,-450.0,0.00019999,2]
[360096978,1746547889675,-450.0,0.00019999,2]
[360096979,1746547889690,-450.0,0.00019999,2]
[360096980,1746547889707,-450.0,0.00019999,2]
[360096981,1746547889722,-450.0,0.00019999,2]
[360096982,1746547889731,-450.0,0.00019999,2]
[360096983,1746547889742,-151.0,0.00019999,2]
[360096984,1746547889752,-450.0,0.00019999,2]
[360096985,1746547889762,-450.0,0.00019999,2]
[360096986,1746547889772,-453.00257842,0.00019999,2]
[360096987,1746547889783,-450.0,0.00019999,2]
[360096988,1746547889793,-450.0,0.00019999,2]
[360096989,1746547889802,-450.0,0.00019999,2]
[360096990,1746547889812,-450.0,0.00019999,2]
[360096991,1746547889822,-242.52099,0.00019999,2]
[360096992,1746547889832,-214.652,0.0002,2]
[360096993,1746547889841,-253.434,0.0002,2]
[360096994,1746547889850,-182.758,0.0002,2]
[360096995,1746547889860,-203.026,0.0002,2]
[360096996,1746547889869,-260.1,0.0002,2]
[360096997,1746547889879,-1432.157,0.0002,2]
[360096998,1746547889890,-928.145,0.0002,2]
[360096999,1746547889900,-1041993.43053755,0.0002,2]
[360097000,1746547889909,-260143.14422472,0.0002,2]
[360097001,1746547889936,-11985.68605189,0.0002,2]
[360097002,1746547890065,-296.59907865,0.00019799,2]
[360097003,1746547890077,-731.968922,0.00019799,2]
[360097004,1746547890088,-8971.43199935,0.00019799,2]
[360097005,1746547890098,-450.0,0.00019898,2]
[360097006,1746547890107,-450.0,0.00019984,2]
[360097007,1746547890117,-450.0,0.00019996,2]
[360097008,1746547890126,-450.0,0.00019997,2]
[360097009,1746547890136,-450.0,0.00019998,2]
[360097010,1746547890146,-450.0,0.00019998,2]
[360097011,1746547890493,-450.0,0.00019998,2]
[360097012,1746547890515,-450.0,0.00019998,2]
[360097013,1746547890531,-450.0,0.00019998,2]
[360097014,1746547890544,-450.0,0.00019999,2]
[360097015,1746547890554,-450.0,0.00019999,2]
[360097016,1746547890563,-450.0,0.00019999,2]
[360097017,1746547890572,-228.06,0.00019999,2]
[360097018,1746547890582,-13556.80455776,0.0002,2]
[360097019,1746547890762,-450.0,0.00019998,2]
[360097020,1746547890772,-18731.36656029,0.0002,2]
[360097021,1746547890808,361.2325,0.000195,2]
[360097022,1746547890937,-247.9801,0.00019799,2]
[360097023,1746547890947,-450.0,0.00019899,2]
[360097024,1746547890957,-118.8199,0.00019955,2]
[360097025,1746547890968,-5814.1801,0.00019955,2]
[360097026,1746547890978,-550.0,0.00019985,2]
[360097027,1746547890989,-400.0,0.00019998,2]
[360097028,1746547890999,-17236.18445639,0.0002,2]
[360097029,1746547891010,-9383.8623664,0.0002,2]
[360097030,1746547891023,-516.9995,0.0002,2]
[360097031,1746547891034,-5683.77692993,0.0002,2]
[360097032,1746547891064,-4730.0,0.0002,2]
[360097033,1746547891077,-1864.12420033,0.0002,2]
[360097034,1746547892493,397.39,0.00018857,2]
[360097035,1746547956172,152.67,0.000298,31]
[360097036,1746547956217,152.67,0.000298,31]
[360097037,1746547956259,152.67,0.000298,31]
[360097038,1746547956310,152.67,0.000298,31]
[360097039,1746547956380,152.67,0.000298,31]
[360097040,1746547956438,152.67,0.000298,31]
[360097041,1746547956498,152.67,0.000298,31]
[360097042,1746547956563,152.67,0.000298,31]
[360097043,1746547956631,152.67,0.000298,31]
[360097044,1746547956680,152.67,0.000298,31]
[360097045,1746547956764,152.67,0.000298,31]
[360097046,1746547956943,152.67,0.000298,31]
[360097047,1746547957075,152.67,0.000298,31]
[360097048,1746547957221,152.67,0.000298,31]
[360097049,1746548081249,154.5,0.00018932,2]
[360097050,1746548110993,250.0,0.00019119,2]
[360097051,1746548117267,250.0,0.00017,2]
[360097052,1746548118355,300.0,0.00019,2]
[360097053,1746548165482,1852.42,0.00018926,2]
[360097054,1746548195575,2724.52,0.00018917,2]
[360097055,1746548314406,164.06,0.00019457,2]
[360097056,1746548332262,1800.0,0.0003,30]
[360097057,1746548336217,1000.0,0.00018891,2]
[360097069,1746548564453,152.7,0.000298,31]
[360097070,1746548564498,152.7,0.000298,31]
[360097071,1746548564553,152.7,0.000298,31]
[360097072,1746548564608,152.7,0.000298,31]
[360097073,1746548564671,152.7,0.000298,31]
[360097074,1746548564730,152.7,0.000298,31]
[360097075,1746548564789,152.7,0.000298,31]
[360097076,1746548589714,4000.0,0.00018852,2]
[360097077,1746548651912,4000.0,0.0003,30]
[360097078,1746548682275,2000.0,0.0003,30]
[360097079,1746548688878,3000.0,0.0003,30]
[360097080,1746548696234,2436.11,0.0001885,2]
[360097081,1746548699650,1013.8,0.00016933,2]
[360097082,1746548699847,1013.8,0.00019197,2]
[360097083,1746548706148,17156.64,0.00018849,2]
[360097085,1746548717169,2609.03,0.00018891,2]
[360097087,1746548887496,198.69,0.00018853,2]
[360097092,1746548909783,500.0,0.000298,30]
[360097096,1746548937206,2089.0,0.0003,31]
[360097102,1746549031771,-903.75432054,0.0001965,2]
[360097103,1746549031781,-250.0,0.00019673,2]
[360097104,1746549031790,-200.0,0.00019695,2]
[360097105,1746549031800,-200.0,0.00019731,2]
[360097106,1746549031809,-207.4,0.0001974,2]
[360097107,1746549031819,-1000.0,0.00019751,2]
[360097108,1746549031830,-151.0,0.00019751,2]
[360097109,1746549031839,-129.55218894,0.00019752,2]
[360097110,1746549031850,-870.44781106,0.00019752,2]
[360097111,1746549031859,-1000.0,0.00019752,2]
[360097112,1746549031869,-1200.0,0.00019759,2]
[360097113,1746549031878,-300.0,0.00019759,2]
[360097114,1746549031887,-1000.0,0.0001976,2]
[360097115,1746549031896,-535.12940244,0.00019761,2]
[360097116,1746549031905,-1000.0,0.00019773,2]
[360097117,1746549031914,-300.0,0.00019773,2]
[360097118,1746549031923,-1000.0,0.00019774,2]
[360097119,1746549031932,-1000.0,0.00019796,2]
[360097120,1746549031942,-317.35205343,0.00019799,2]
[360097121,1746549031952,-171.72835766,0.000198,2]
[360097122,1746549031961,-1131.60250926,0.000198,2]
[360097123,1746549031970,-299.99,0.00019808,7]
[360097124,1746549031979,-317.35205343,0.0001981,2]
[360097125,1746549031989,-1131.6025092,0.00019811,2]
[360097126,1746549031998,-1000.0,0.00019813,2]
[360097127,1746549032009,-1000.0,0.00019814,2]
[360097128,1746549032020,-317.35205343,0.00019821,2]
[360097129,1746549032030,-1131.6025092,0.00019822,2]
[360097132,1746549032040,-1000.0,0.00019826,2]
[360097133,1746549032049,-151.0,0.00019828,2]
[360097135,1746549032058,-151.0,0.00019828,2]
[360097137,1746549032067,-155.0,0.00019828,2]
[360097139,1746549032077,-668.65185757,0.00019828,2]
[360097141,1746549032086,-317.35205343,0.00019833,2]
[360097143,1746549032095,-1131.6025092,0.00019833,2]
[360097145,1746549032104,-1000.0,0.00019837,2]
[360097147,1746549032113,-200.0,0.0001984,2]
[360097149,1746549032124,-317.35205343,0.00019844,2]
[360097151,1746549032133,-1131.6025092,0.00019844,2]
[360097153,1746549032143,-1000.0,0.0001985,2]
[360097155,1746549032152,-1131.6025092,0.00019856,2]
[360097157,1746549032161,-1131.6025092,0.00019867,2]
[360097159,1746549032171,-1000.0,0.0001987,2]
[360097161,1746549032180,-1000.0,0.00019871,2]
[360097163,1746549032189,-500.0,0.00019873,2]
[360097165,1746549032198,-542.00903052,0.00019873,2]
[360097167,1746549032208,-500.0,0.00019873,2]
[360097169,1746549032217,-500.0,0.00019873,2]
[360097172,1746549032227,-507.35604364,0.00019873,2]
[360097175,1746549032236,-500.0,0.00019873,2]
[360097178,1746549032246,-500.0,0.00019873,2]
[360097180,1746549032255,-500.0,0.00019873,2]
[360097182,1746549032265,-1000.0,0.0001988,2]
[360097184,1746549032274,-511.02248216,0.00019881,2]
[360097186,1746549032283,-220.0651245,0.00019885,2]
[360097188,1746549032292,-152.65,0.00019889,2]
[360097190,1746549032301,-511.02248216,0.0001989,2]
[360097192,1746549032310,-1000.0,0.00019892,2]
[360097194,1746549032319,-318.41,0.00019897,2]
[360097196,1746549032329,-1000.0,0.00019897,2]
[360097198,1746549032338,-450.0,0.00019898,2]
[360097200,1746549032347,-450.0,0.00019898,2]
[360097202,1746549032357,-450.0,0.00019898,2]
[360097204,1746549032366,-450.0,0.00019898,2]
[360097206,1746549032375,-450.0,0.00019898,2]
[360097208,1746549032384,-450.0,0.00019898,2]
[360097210,1746549032393,-450.0,0.00019898,2]
[360097212,1746549032403,-450.0,0.00019898,2]
[360097214,1746549032412,-450.0,0.00019898,2]
[360097215,1746549032421,-450.0,0.00019898,2]
[360097216,1746549032430,-450.0,0.00019898,2]
[360097217,1746549032439,-450.0,0.00019898,2]
[360097218,1746549032449,-462.42666016,0.00019898,2]
[360097219,1746549032458,-470.0,0.00019898,2]
[360097220,1746549032467,-450.0,0.00019898,2]
[360097221,1746549032477,-450.0,0.00019898,2]
[360097222,1746549032486,-450.0,0.00019898,2]
[360097223,1746549032495,-316.55485335,0.00019898,2]
[360097224,1746549032504,-450.0,0.00019898,2]
[360097225,1746549032513,-450.0,0.00019898,2]
[360097226,1746549032523,-450.0,0.00019898,2]
[360097227,1746549032532,-450.0,0.00019898,2]
[360097228,1746549032541,-450.0,0.00019898,2]
[360097229,1746549032550,-450.0,0.00019898,2]
[360097230,1746549032560,-450.0,0.00019898,2]
[360097231,1746549032570,-450.0,0.00019898,2]
[360097232,1746549032579,-533.06579717,0.00019898,2]
[360097233,1746549032589,-450.0,0.00019898,2]
[360097234,1746549032598,-450.0,0.00019898,2]
[360097235,1746549032608,-450.0,0.00019898,2]
[360097236,1746549032617,-450.0,0.00019898,2]
[360097237,1746549032626,-450.0,0.00019898,2]
[360097238,1746549032636,-450.0,0.00019898,2]
[360097239,1746549032644,-450.0,0.00019898,2]
[360097240,1746549032653,-450.0,0.00019898,2]
[360097241,1746549032663,-450.0,0.00019898,2]
[360097242,1746549032672,-450.0,0.00019898,2]
[360097243,1746549032681,-450.0,0.00019898,2]
[360097244,1746549032691,-481.54,0.00019898,2]
[360097245,1746549032700,-450.0,0.00019898,2]
[360097246,1746549032709,-450.0,0.00019898,2]
[360097247,1746549032718,-450.0,0.00019898,2]
[360097248,1746549032727,-450.0,0.00019898,2]
[360097249,1746549032737,-450.0,0.00019898,2]
[360097250,1746549032746,-450.0,0.00019898,2]
[360097251,1746549032756,-450.0,0.00019898,2]
[360097252,1746549032765,-450.0,0.00019898,2]
[360097253,1746549032776,-476.55,0.00019898,2]
[360097254,1746549032786,-450.0,0.00019898,2]
[360097255,1746549032795,-546.43,0.00019898,2]
[360097256,1746549032805,-450.0,0.00019898,2]
[360097257,1746549032814,-450.0,0.00019898,2]
[360097258,1746549032824,-450.0,0.00019898,2]
[360097259,1746549032833,-450.0,0.00019898,2]
[360097260,1746549032843,-553.79,0.00019898,2]
[360097261,1746549032852,-450.0,0.00019898,2]
[360097262,1746549032861,-450.0,0.00019898,2]
[360097263,1746549032870,-450.0,0.00019898,2]
[360097264,1746549032879,-450.0,0.00019898,2]
[360097265,1746549032889,-450.0,0.00019898,2]
[360097266,1746549032898,-548.84,0.00019898,2]
[360097267,1746549032907,-450.0,0.00019898,2]
[360097268,1746549032917,-450.0,0.00019898,2]
[360097269,1746549032927,-450.0,0.00019898,2]
[360097270,1746549032935,-247.04216546,0.00019898,2]
[360097271,1746549032945,-450.0,0.00019898,2]
[360097272,1746549032954,-450.0,0.00019898,2]
[360097273,1746549032963,-450.0,0.00019898,2]
[360097274,1746549032972,-450.0,0.00019898,2]
[360097275,1746549032982,-450.0,0.00019898,2]
[360097276,1746549032991,-450.0,0.00019898,2]
[360097277,1746549033000,-188.01,0.00019898,2]
[360097278,1746549033009,-450.0,0.00019898,2]
[360097279,1746549033018,-238.80664901,0.00019898,2]
[360097280,1746549033028,-450.0,0.00019898,2]
[360097281,1746549033037,-399.34827431,0.00019898,2]
[360097282,1746549033047,-450.0,0.00019898,2]
[360097283,1746549033056,-450.0,0.00019898,2]
[360097284,1746549033065,-450.0,0.00019898,2]
[360097285,1746549033075,-280.15400175,0.00019898,2]
[360097286,1746549033085,-450.0,0.00019898,2]
[360097287,1746549033094,-450.0,0.00019898,2]
[360097288,1746549033104,-450.0,0.00019898,2]
[360097289,1746549033114,-450.0,0.00019898,2]
[360097290,1746549033127,-450.0,0.00019898,2]
[360097291,1746549033136,-450.0,0.00019898,2]
[360097292,1746549033145,-450.0,0.00019898,2]
[360097293,1746549033155,-450.0,0.00019898,2]
[360097294,1746549033164,-450.0,0.00019898,2]
[360097295,1746549033173,-450.0,0.00019898,2]
[360097296,1746549033183,-450.0,0.00019898,2]
[360097297,1746549033193,-450.0,0.00019898,2]
[360097298,1746549033203,-450.0,0.00019898,2]
[360097299,1746549033212,-450.0,0.00019898,2]
[360097300,1746549033221,-450.0,0.00019898,2]
[360097301,1746549033230,-581.80402218,0.00019898,2]
[360097302,1746549033239,-450.0,0.00019898,2]
[360097303,1746549033248,-450.0,0.00019898,2]
[360097304,1746549033257,-450.0,0.00019898,2]
[360097305,1746549033267,-467.99,0.00019898,2]
[360097306,1746549033276,-450.0,0.00019898,2]
[360097307,1746549033285,-450.0,0.00019898,2]
[360097308,1746549033294,-450.0,0.00019898,2]
[360097309,1746549033304,-450.0,0.00019898,2]
[360097310,1746549033313,-450.0,0.00019898,2]
[360097311,1746549033322,-450.0,0.00019898,2]
[360097312,1746549033334,-450.0,0.00019898,2]
[360097313,1746549033343,-450.0,0.00019898,2]
[360097314,1746549033352,-450.0,0.00019898,2]
[360097315,1746549033361,-450.0,0.00019898,2]
[360097316,1746549033370,-450.0,0.00019898,2]
[360097317,1746549033380,-492.38892142,0.00019898,2]
[360097318,1746549033389,-450.0,0.00019898,2]
[360097319,1746549033398,-545.75481064,0.00019898,2]
[360097320,1746549033407,-450.0,0.00019898,2]
[360097321,1746549033416,-450.0,0.00019898,2]
[360097322,1746549033426,-450.0,0.00019898,2]
[360097323,1746549033435,-450.0,0.00019898,2]
[360097324,1746549033444,-450.0,0.00019898,2]
[360097325,1746549033453,-450.0,0.00019898,2]
[360097326,1746549033462,-450.0,0.00019898,2]
[360097327,1746549033471,-450.0,0.00019898,2]
[360097328,1746549033481,-450.0,0.00019898,2]
[360097329,1746549033490,-450.0,0.00019898,2]
[360097330,1746549033499,-450.0,0.00019898,2]
[360097331,1746549033508,-450.0,0.00019898,2]
[360097332,1746549033517,-450.0,0.00019898,2]
[360097333,1746549033526,-450.0,0.00019898,2]
[360097334,1746549033536,-450.0,0.00019898,2]
[360097335,1746549033545,-450.0,0.00019898,2]
[360097336,1746549033554,-450.0,0.00019898,2]
[360097337,1746549033564,-450.0,0.00019898,2]
[360097338,1746549033573,-450.0,0.00019898,2]
[360097339,1746549033582,-450.0,0.00019898,2]
[360097340,1746549033592,-450.0,0.00019898,2]
[360097341,1746549033601,-450.0,0.00019898,2]
[360097342,1746549033611,-450.0,0.00019898,2]
[360097343,1746549033620,-450.0,0.00019898,2]
[360097344,1746549033630,-450.0,0.00019898,2]
[360097345,1746549033639,-450.0,0.00019898,2]
[360097346,1746549033649,-450.0,0.00019898,2]
[360097347,1746549033658,-500.0,0.00019898,2]
[360097348,1746549033668,-450.0,0.00019898,2]
[360097349,1746549033677,-450.0,0.00019898,2]
[360097350,1746549033686,-450.0,0.00019898,2]
[360097351,1746549033696,-450.0,0.00019898,2]
[360097352,1746549033705,-450.0,0.00019898,2]
[360097353,1746549033714,-450.0,0.00019898,2]
[360097354,1746549033723,-2120.695685,0.00019898,2]
[360097355,1746549033733,-450.0,0.00019898,2]
[360097356,1746549033742,-354.20225919,0.00019898,2]
[360097357,1746549033751,-517.76685328,0.00019898,2]
[360097358,1746549033761,-450.0,0.00019898,2]
[360097359,1746549033770,-319.62679184,0.00019898,2]
[360097360,1746549033963,-451.07455232,0.00019898,2]
[360097361,1746549033972,-520.32,0.00019898,2]
[360097362,1746549033982,-450.0,0.00019898,2]
[360097363,1746549033991,-450.0,0.00019898,2]
[360097364,1746549034001,-516.10525474,0.00019898,2]
[360097365,1746549034011,-450.0,0.00019898,2]
[360097366,1746549034020,-450.0,0.00019898,2]
[360097367,1746549034029,-504.42632153,0.00019898,2]
[360097368,1746549034038,-450.0,0.00019898,2]
[360097369,1746549034048,-698.307663,0.00019898,2]
[360097370,1746549034057,-450.0,0.00019898,2]
[360097371,1746549034067,-450.0,0.00019898,2]
[360097372,1746549034076,-450.0,0.00019898,2]
[360097373,1746549034085,-570.0,0.00019898,2]
[360097374,1746549034095,-450.0,0.00019898,2]
[360097375,1746549034104,-450.0,0.00019898,2]
[360097376,1746549034114,-450.0,0.00019898,2]
[360097377,1746549034127,-450.0,0.00019898,2]
[360097378,1746549034136,-450.0,0.00019898,2]
[360097379,1746549034146,-106.28059424,0.00019898,2]
[360097380,1746549034166,-172.04015209,0.00019898,2]
[360097381,1746549034175,-450.0,0.00019898,2]
[360097382,1746549034185,-261.838402,0.00019898,2]
[360097383,1746549034195,-500.0,0.00019898,2]
[360097384,1746549034206,-495.64726216,0.00019898,2]
[360097385,1746549034217,-450.0,0.00019898,2]
[360097386,1746549034227,-450.0,0.00019899,2]
[360097387,1746549034237,-450.0,0.00019899,2]
[360097388,1746549034247,-450.0,0.00019899,2]
[360097389,1746549034257,-289.10630223,0.00019899,2]
[360097390,1746549034271,-160.89369777,0.00019899,2]
[360097391,1746549034281,-419.80341459,0.00019899,2]
[360097392,1746549034293,-30.19658541,0.00019899,2]
[360097393,1746549034303,-450.0,0.00019899,2]
[360097394,1746549034313,-450.0,0.00019899,2]
[360097395,1746549034322,-450.0,0.00019899,2]
[360097396,1746549034335,-419.97576108,0.00019899,2]
[360097397,1746549034345,-450.0,0.00019899,2]
[360097398,1746549034355,-450.0,0.00019899,2]
[360097399,1746549034365,-450.0,0.00019899,2]
[360097400,1746549034374,-450.0,0.00019899,2]
[360097401,1746549034384,-450.0,0.00019899,2]
[360097402,1746549034393,-450.0,0.00019899,2]
[360097403,1746549034402,-450.0,0.00019899,2]
[360097404,1746549034411,-500.0,0.00019899,2]
[360097405,1746549034421,-526.91236847,0.00019899,2]
[360097406,1746549034430,-450.0,0.00019899,2]
[360097407,1746549034440,-450.0,0.00019899,2]
[360097408,1746549034449,-450.0,0.00019899,2]
[360097409,1746549034460,-450.0,0.00019899,2]
[360097410,1746549034469,-450.0,0.00019899,2]
[360097411,1746549034480,-450.0,0.00019899,2]
[360097412,1746549034489,-450.0,0.00019899,2]
[360097413,1746549034499,-450.0,0.00019899,2]
[360097414,1746549034508,-450.0,0.00019899,2]
[360097415,1746549034517,-450.0,0.00019899,2]
[360097416,1746549034527,-450.0,0.00019899,2]
[360097417,1746549034536,-450.0,0.00019899,2]
[360097418,1746549034546,-450.0,0.00019899,2]
[360097419,1746549034556,-450.0,0.00019899,2]
[360097420,1746549034565,-450.0,0.00019899,2]
[360097421,1746549034576,-450.0,0.00019899,2]
[360097422,1746549034588,-450.0,0.00019899,2]
[360097423,1746549034598,-174.05405849,0.00019899,2]
[360097424,1746549034608,-450.0,0.00019899,2]
[360097425,1746549034618,-450.0,0.00019899,2]
[360097426,1746549034627,-450.0,0.00019899,2]
[360097427,1746549034637,-462.27,0.00019899,2]
[360097428,1746549034646,-450.0,0.00019899,2]
[360097429,1746549034656,-450.0,0.00019899,2]
[360097430,1746549034666,-478.32781497,0.00019899,2]
[360097431,1746549034675,-450.0,0.00019899,2]
[360097432,1746549034686,-450.0,0.00019899,2]
[360097433,1746549034696,-450.0,0.00019899,2]
[360097434,1746549034706,-450.0,0.00019899,2]
[360097435,1746549034717,-450.0,0.00019899,2]
[360097436,1746549034728,-491.37161119,0.00019899,2]
[360097437,1746549034738,-450.0,0.00019899,2]
[360097438,1746549034748,-450.0,0.00019899,2]
[360097439,1746549034757,-450.0,0.00019899,2]
[360097440,1746549034767,-450.0,0.00019899,2]
[360097441,1746549034776,-450.0,0.00019899,2]
[360097442,1746549034786,-450.0,0.00019899,2]
[360097443,1746549034796,-481.48330317,0.00019899,2]
[360097444,1746549034805,-450.0,0.00019899,2]
[360097445,1746549034815,-450.0,0.00019899,2]
[360097446,1746549034824,-450.0,0.00019899,2]
[360097447,1746549034836,-450.0,0.00019899,2]
[360097448,1746549034846,-450.0,0.00019899,2]
[360097449,1746549034855,-450.0,0.00019899,2]
[360097450,1746549034865,-450.0,0.00019899,2]
[360097451,1746549034874,-450.0,0.00019899,2]
[360097452,1746549034884,-450.0,0.00019899,2]
[360097453,1746549034893,-450.0,0.00019899,2]
[360097454,1746549034903,-450.0,0.00019899,2]
[360097455,1746549034912,-450.0,0.00019899,2]
[360097456,1746549034922,-450.0,0.00019899,2]
[360097457,1746549034932,-450.0,0.00019899,2]
[360097458,1746549034942,-450.0,0.00019899,2]
[360097459,1746549034952,-470.0,0.00019899,2]
[360097460,1746549034961,-450.0,0.00019899,2]
[360097461,1746549034971,-450.0,0.00019899,2]
[360097462,1746549034980,-450.0,0.00019899,2]
[360097463,1746549034989,-450.0,0.00019899,2]
[360097464,1746549034999,-450.0,0.00019899,2]
[360097465,1746549035008,-450.0,0.00019899,2]
[360097466,1746549035017,-450.0,0.00019899,2]
[360097467,1746549035027,-450.0,0.00019899,2]
[360097468,1746549035036,-450.0,0.00019899,2]
[360097469,1746549035045,-636.06455885,0.00019899,2]
[360097470,1746549035055,-450.0,0.00019899,2]
[360097471,1746549035064,-450.0,0.00019899,2]
[360097472,1746549035073,-450.0,0.00019899,2]